bitfinex-derivatives/quotes_SOLF0:USTF0_20250630
["timestamp","ask_amount","ask_price","bid_price","bid_amount"]
[1751292943559,5.94624875,151.04,150.99,36.18]
[1751292943760,6.62,151.02,151.0,6.6207]
[1751292943958,5.94624875,151.04,150.96,36.18]
[1751292944165,15.07163441,151.05,150.96,36.18]
[1751292944361,6.6197,151.03,151.0,6.6207]
[1751292944556,15.04340577,151.05,150.96,36.18]
[1751292944958,17.36380577,151.05,150.96,36.18]
[1751292945762,17.36380577,151.05,151.0,6.6207]
[1751292945969,17.36380577,151.05,150.96,36.18]
[1751292946266,6.6202,151.02,150.99,6.6211]
[1751292946470,17.36380577,151.05,150.96,36.18]
[1751292946967,6.6198,151.03,151.0,6.6209]
[1751292947164,17.36380577,151.05,150.96,36.18]
[1751292947567,6.6196,151.03,151.0,6.6207]
[1751292948264,11.41755702,151.05,150.96,36.18]
[1751292948471,36.18,151.06,150.99,5.94624875]
[1751292948964,4.52154204,151.08,151.01,5.94624875]
[1751292949169,45.1616324,151.1,151.01,42.12624875]
[1751292949364,4.52154204,151.09,151.03,5.94624875]
[1751292949568,36.18,151.1,151.03,5.94624875]
[1751292950467,36.18,151.1,151.07,6.6176]
[1751292950670,42.7968,151.1,151.07,6.6176]
[1751292950858,6.6168,151.1,151.07,6.6176]
[1751292951964,15.5226434,151.11,151.08,6.6173]
[1751292952871,6.6166,151.1,151.07,6.6177]
[1751292953471,6.6166,151.1,151.08,6.6174]
[1751292953769,15.5226434,151.11,151.08,6.6174]
[1751292954267,117.52228202,151.12,151.09,6.6165]
[1751292954472,124.13808202,151.12,151.09,6.6165]
[1751292955270,6.6161,151.11,151.09,6.6165]
[1751292956066,6.6161,151.11,151.08,6.6172]
[1751292956269,6.6158,151.12,151.05,36.38]
[1751292956569,6.6158,151.12,151.09,6.6167]
[1751292957572,4.52016158,151.12,151.09,6.6167]
[1751292957776,44.46773372,151.13,151.1,6.6165]
[1751292957972,55.47524548,151.13,151.1,6.6165]
[1751292958174,46.56307214,151.13,151.1,6.6165]
[1751292958373,46.56307214,151.13,151.11,6.616]
[1751292958676,6.6158,151.12,151.06,3.56757214]
[1751292958871,6.6158,151.12,151.1,6.6165]
[1751292959273,6.6162,151.11,151.06,3.56757214]
[1751292959474,39.94757214,151.13,151.06,3.56757214]
[1751292959675,36.38,151.13,151.06,3.56757214]
[1751292959874,39.94757214,151.13,151.1,6.6163]
[1751292960376,46.56297214,151.13,151.1,6.6163]
[1751292960576,52.4357079,151.12,150.88,19.8784]
[1751292960881,3.56757214,151.05,150.99,632.12]
[1751292961273,3.56757214,151.03,150.99,632.12]
[1751292961876,5.95320702,151.05,150.99,632.12]
[1751292962180,5.95320702,151.04,150.99,632.12]
[1751292962571,5.95320702,151.02,150.97,37.92]
[1751292962772,5.95320702,151.04,150.97,37.92]
[1751292963172,6.6206,151.01,150.93,5.95320702]
[1751292963377,6.6206,151.01,150.97,6.6222]
[1751292963676,5.95320702,151.02,150.93,5.95320702]
[1751292963878,5.95320702,151.02,150.94,37.92]
[1751292964072,5.95320702,151.02,150.93,5.95320702]
[1751292964282,12.57330702,151.02,150.97,6.6218]
[1751292964480,5.95320702,151.02,150.93,5.95320702]
[1751292964781,4.52465931,151.03,150.95,5.95320702]
[1751292964983,4.5425,151.05,150.95,5.95320702]
[1751292965482,11.1612,151.05,151.01,6.6201]
[1751292965679,4.5425,151.05,151.0,37.92]
[1751292966281,4.5425,151.05,151.02,6.6197]
[1751292966878,17.09616633,151.06,151.02,6.6197]
[1751292967378,4.52465931,151.06,151.0,37.92]
[1751292967580,4.52465931,151.08,151.01,5.95320702]
[1751292967780,8.8684,151.09,151.05,6.6185]
[1751292968479,8.8684,151.09,151.06,6.6182]
[1751292968678,6.6174,151.08,151.04,37.92]
[1751292969888,6.6174,151.08,151.05,6.6184]
[1751292970283,8.8685,151.09,151.04,37.92]
[1751292970480,4.52465931,151.1,151.04,37.92]
[1751292970982,6.6168,151.1,151.07,6.6175]
[1751292971478,9.01152543,151.11,151.07,6.6175]
[1751292971886,6.6168,151.1,151.07,6.6175]
[1751292972778,13.26222543,151.11,151.08,6.6173]
[1751292972978,6.6162,151.11,151.08,6.6173]
[1751292973682,6.6162,151.11,151.04,37.92]
[1751292973983,5.95320702,151.12,151.04,37.92]
[1751292973984,17.05319972,151.12,151.04,37.92]
[1751292974181,4.4841927,151.13,151.05,5.95320702]
[1751292974578,6.6155,151.13,151.1,6.6163]
[1751292974983,6.6155,151.13,151.08,37.92]
[1751292975184,6.6158,151.12,151.08,37.92]
[1751292975681,6.6149,151.14,151.08,37.92]
[1751292976288,6.6153,151.13,151.08,37.92]
[1751292976480,10.43739972,151.16,151.08,37.92]
[1751292976780,6.615,151.14,151.08,37.92]
[1751292977289,6.615,151.14,151.11,6.6158]
[1751292977586,6.615,151.14,151.08,37.92]
[1751292977786,4.4841927,151.16,151.13,6.615]
[1751292977978,143.33780702,151.18,151.09,4.5505]
[1751292978182,6.6141,151.16,151.09,4.5505]
[1751292978384,6.70197084,151.17,151.1,5.95320702]
[1751292978687,6.6137,151.17,151.1,8.23190702]
[1751292978992,6.6137,151.17,151.14,6.6145]
[1751292979487,6.6139,151.16,151.14,6.6145]
[1751292980091,6.6136,151.17,151.14,6.6145]
[1751292980287,10.43739972,151.19,151.14,6.6145]
[1751292980988,5.95320702,151.17,151.13,44.535]
[1751292981287,6.614,151.16,151.13,44.535]
[1751292981892,6.6132,151.18,151.16,6.6138]
[1751292982099,4.72660433,151.19,151.13,37.92]
[1751292982290,4.72660433,151.18,151.13,37.92]
[1751292982587,5.95320702,151.2,151.14,6.6146]
[1751292982790,10.67981135,151.2,151.14,6.6146]
[1751292982990,10.67981135,151.2,151.15,6.6143]
[1751292983191,5.95320702,151.2,151.13,37.9]
[1751292983490,6.6122,151.2,151.13,37.9]
[1751292983689,10.67981135,151.22,151.13,37.9]
[1751292983893,3.56414081,151.21,151.13,41.46414081]
[1751292984093,10.17614081,151.21,151.13,41.46414081]
[1751292985391,6.94784406,151.23,151.17,3.56414081]
[1751292985596,40.2653,151.27,151.17,3.56414081]
[1751292985597,6.94784406,151.26,151.18,37.9]
[1751292985794,4.72660433,151.26,151.18,43.83594866]
[1751292985994,2.3653,151.27,151.18,43.83594866]
[1751292986391,8.9747,151.27,151.21,6.6114]
[1751292986587,8.9747,151.27,151.22,37.9]
[1751292986791,2.3653,151.27,151.22,37.9]
[1751292986998,6.6098,151.26,151.22,37.9]
[1751292987187,8.30124866,151.27,151.22,37.9]
[1751292987588,5.93594866,151.27,151.22,37.9]
[1751292987799,6.94784406,151.28,151.22,37.9]
[1751292987992,6.6097,151.26,151.22,37.9]
[1751292988198,17.48034434,151.29,151.22,37.9]
[1751292988492,6.6102,151.25,151.22,37.9]
[1751292988694,10.53250028,151.29,151.22,37.9]
[1751292989100,6.6101,151.25,151.22,44.5111]
[1751292989395,10.53250028,151.29,151.22,37.9]
[1751292989797,145.17250028,151.29,151.22,37.9]
[1751292989997,6.94784406,151.28,151.22,37.9]
[1751292991000,12.88379272,151.28,151.22,44.511]
[1751292991300,10.66255299,151.28,151.22,37.9]
[1751292991490,11.33550433,151.28,151.25,6.6099]
[1751292991688,4.59655162,151.29,151.22,37.9]
[1751292992098,6.6095,151.27,151.24,6.6104]
[1751292992298,6.6095,151.27,151.22,37.9]
[1751292992698,4.59655162,151.29,151.24,6.6101]
[1751292992895,10.53250028,151.29,151.22,37.9]
[1751292993496,5.93594866,151.27,151.2,36.92]
[1751292993698,5.93594866,151.27,151.2,43.532]
[1751292993895,6.6115,151.22,151.2,36.92]
[1751292994097,6.81945052,151.29,151.2,36.92]
[1751292994098,5.93594866,151.26,151.2,36.92]
[1751292994502,5.93594866,151.24,151.2,36.92]
[1751292994702,5.93594866,151.22,151.18,36.92]
[1751292994897,6.6126,151.19,151.18,36.92]
[1751292995298,5.93594866,151.2,151.15,36.92]
[1751292995799,6.6133,151.18,151.15,43.5341]
[1751292996100,6.6133,151.18,151.15,6.6141]
[1751292996495,5.93594866,151.16,150.99,595.18]
[1751292996692,5.93594866,151.1,151.0,46.4021]
[1751292996897,12.55254866,151.1,151.0,46.4021]
[1751292997199,5.93594866,151.1,151.0,46.4021]
[1751292997403,5.93594866,151.1,151.01,5.93594866]
[1751292997598,6.6161,151.11,151.01,5.93594866]
[1751292997804,10.74342308,151.12,151.02,5.93594866]
[1751292998007,12.55264866,151.1,151.05,6.6184]
[1751292998206,5.93594866,151.1,151.04,39.8]
[1751292998407,5.93594866,151.11,151.04,39.8]
[1751292998808,4.80747442,151.12,151.04,39.8]
[1751292999006,5.93594866,151.13,151.04,39.8]
[1751292999207,5.93594866,151.13,151.04,45.73594866]
[1751292999507,10.74342308,151.15,151.06,5.93594866]
[1751292999709,10.74342308,151.15,151.07,2.2861]
[1751293000001,6.6148,151.14,151.09,6.6165]
[1751293000205,10.74342308,151.15,151.08,39.8]
[1751293000397,10.74342308,151.15,151.09,6.6169]
[1751293000806,5.93594866,151.13,151.08,39.8]
[1751293001007,6.6161,151.11,151.07,8.9036]
[1751293001420,5.93594866,151.13,151.07,2.2861]
[1751293001896,6.6161,151.12,151.07,8.9039]
[1751293002500,6.6161,151.11,151.07,8.9039]
[1751293002706,5.93594866,151.13,151.08,6.6171]
[1751293003009,6.6157,151.12,151.08,6.6171]
[1751293003203,5.93594866,151.13,151.07,2.2861]
[1751293003609,12.55114866,151.13,151.07,2.2861]
[1751293003908,15.2089858,151.15,151.07,2.2861]
[1751293004109,21.8235858,151.15,151.11,6.6158]
[1751293004310,5.93594866,151.15,151.07,2.2861]
[1751293004499,5.93594866,151.13,151.07,2.2861]
[1751293004704,9.27303714,151.16,151.07,2.2861]
[1751293004903,8.15374866,151.18,151.08,10.52424866]
[1751293005105,19.65021652,151.18,151.08,10.52424866]
[1751293005301,6.6142,151.16,151.08,10.52424866]
[1751293005909,6.6142,151.16,151.12,6.6154]
[1751293006109,6.6142,151.16,151.1,39.82]
[1751293006313,6.6135,151.17,151.1,39.82]
[1751293007217,6.614,151.16,151.1,39.82]
[1751293007417,6.614,151.16,151.13,6.6151]
[1751293008214,6.614,151.16,151.12,6.6155]
[1751293008616,15.2089858,151.18,151.12,6.6155]
[1751293008816,15.2089858,151.18,151.13,6.6151]
[1751293009117,6.6142,151.16,151.13,6.6151]
[1751293009310,6.6142,151.16,151.12,6.6153]
[1751293009712,6.6143,151.15,151.1,39.82]
[1751293009913,5.93594866,151.12,151.07,2.2861]
[1751293010114,5.93594866,151.12,151.06,39.82]
[1751293010813,5.93594866,151.12,151.03,2.3449]
[1751293011013,5.93594866,151.12,151.04,39.82]
[1751293011219,6.6162,151.11,151.04,39.82]
[1751293011720,6.6162,151.11,151.07,6.6175]
[1751293012119,6.6166,151.1,151.07,6.6175]
[1751293012315,5.93594866,151.1,151.04,39.82]
[1751293012521,5.93594866,151.08,151.02,4.3181]
[1751293012812,5.93594866,151.04,151.01,6.6202]
[1751293013017,5.93594866,151.04,150.98,42.1687]
[1751293013414,5.93594866,151.04,151.01,6.6201]
[1751293013614,5.93594866,151.04,150.98,2.3487]
[1751293014609,5.93594866,151.04,151.01,6.6201]
[1751293014813,5.93594866,151.04,150.98,2.3487]
[1751293015116,5.93594866,151.04,151.02,6.6197]
[1751293015317,5.93594866,151.04,150.98,2.3487]
[1751293015616,5.93594866,151.02,150.97,39.82]
[1751293015821,5.93594866,151.0,150.94,39.82]
[1751293016522,5.93594866,151.0,150.99,6.6213]
[1751293017115,5.93594866,151.0,150.98,6.6216]
[1751293017819,5.93594866,151.0,150.94,39.82]
[1751293018013,9.2749512,151.02,150.94,39.82]
[1751293018217,5.93594866,151.0,150.94,39.82]
[1751293019223,5.93594866,151.0,150.98,6.6215]
[1751293019723,5.93594866,151.0,150.94,39.82]
[1751293019914,5.93594866,151.01,150.94,39.82]
[1751293020722,5.93594866,151.03,150.95,5.93594866]
[1751293022325,5.93594866,151.03,151.01,6.6202]
[1751293022719,5.93594866,151.03,150.94,45.75594866]
[1751293022922,5.93594866,151.04,150.94,45.75594866]
[1751293023122,5.93594866,151.05,150.96,5.93594866]
[1751293023423,21.59723767,151.07,151.04,6.6188]
[1751293023622,21.59723767,151.07,150.94,53.0669]
[1751293023623,9.04328901,151.07,150.99,39.84]
[1751293023923,45.77594866,151.08,151.0,42.0618]
[1751293024426,52.39344866,151.08,151.0,42.0618]
[1751293024924,52.39344866,151.08,151.05,6.6184]
[1751293025417,6.6178,151.07,151.0,42.0618]
[1751293025624,6.6178,151.07,151.04,6.619]
[1751293025819,45.77594866,151.08,150.96,5.93594866]
[1751293025820,5.93594866,151.06,150.96,5.93594866]
[1751293026025,6.6199,151.03,151.0,6.6207]
[1751293026217,6.6199,151.03,150.96,39.84]
[1751293026218,5.93594866,151.02,150.96,39.84]
[1751293026418,5.93594866,151.02,150.95,4.4177]
[1751293026419,5.93594866,151.0,150.94,2.2067]
[1751293026622,6.6215,150.99,150.96,6.6223]
[1751293026824,6.6215,150.99,150.92,634.62]
[1751293027424,6.6215,150.99,150.96,6.6223]
[1751293028829,6.6218,150.98,150.96,6.6223]
[1751293029133,5.93594866,150.98,150.92,39.12]
[1751293029330,51.67714866,151.0,150.92,39.12]
[1751293029535,45.05594866,151.0,150.92,39.12]
[1751293029722,39.12,151.0,150.93,5.93594866]
[1751293030028,155.32374866,151.02,150.93,5.93594866]
[1751293030334,155.32374866,151.02,150.99,6.6213]
[1751293031530,142.7677,151.02,150.92,39.12]
[1751293031829,4.5677,151.02,150.94,5.93594866]
[1751293032130,4.5677,151.02,151.0,6.6209]
[1751293032830,51.67574866,151.03,151.01,6.6204]
[1751293033227,45.05594866,151.03,150.96,39.12]
[1751293033434,45.05594866,151.03,151.0,6.6207]
[1751293033630,6.6206,151.01,150.96,39.12]
[1751293033828,45.05594866,151.03,150.96,39.12]
[1751293034135,51.67574866,151.03,150.96,39.12]
[1751293034334,51.67574866,151.03,151.0,6.6207]
[1751293034535,45.05594866,151.03,151.0,6.6207]
[1751293034733,39.12,151.06,150.96,45.05594866]
[1751293034938,39.12,151.06,151.03,6.6194]
[1751293035437,4.56044137,151.06,150.98,5.93594866]
[1751293035639,15.08771426,151.08,150.98,5.93594866]
[1751293035933,6.618,151.07,151.05,6.6187]
[1751293036233,6.6181,151.07,151.05,6.6187]
[1751293036533,15.08771426,151.08,151.0,39.12]
[1751293036833,6.6185,151.06,151.03,6.6196]
[1751293037034,15.08771426,151.08,151.03,6.6196]
[1751293037236,4.56044137,151.07,151.0,45.05594866]
[1751293037438,9.1517656,151.08,151.06,6.6179]
[1751293037736,4.56044137,151.08,151.02,5.93594866]
[1751293037931,9.1608374,151.11,151.02,5.93594866]
[1751293038135,4.56044137,151.1,151.02,5.93594866]
[1751293038336,4.56044137,151.09,151.02,5.93594866]
[1751293038543,4.63386375,151.08,151.02,5.93594866]
[1751293038735,4.63386375,151.1,151.02,5.93594866]
[1751293039037,11.25106375,151.09,151.06,6.6179]
[1751293039237,4.63386375,151.08,151.06,6.6179]
[1751293039432,4.63386375,151.07,151.06,6.6179]
[1751293039639,4.63386375,151.07,151.02,5.93594866]
[1751293039837,4.63386375,151.06,151.0,45.05594866]
[1751293040133,11.25276375,151.05,150.98,5.93594866]
[1751293040333,4.60039603,151.11,150.98,5.93594866]
[1751293040334,6.81579603,151.1,150.99,39.12]
[1751293040535,6.6175,151.08,151.06,6.6182]
[1751293040734,4.6453236,151.07,151.06,6.6182]
[1751293042741,4.64656242,151.07,151.06,6.6182]
[1751293043345,176.22,151.12,151.08,6.6173]
[1751293043644,11.05048812,151.11,151.08,6.6173]
[1751293044343,4.6464434,151.1,151.08,6.6173]
[1751293044541,4.6464434,151.09,151.08,6.6173]
[1751293049447,4.43408812,151.14,151.12,6.6154]
[1751293049648,6.6146,151.15,151.12,6.6154]
[1751293049844,4.43408812,151.14,151.12,6.6154]
[1751293050049,4.43408812,151.14,151.13,6.6152]
[1751293050250,4.43408812,151.15,151.13,6.6152]
[1751293050749,11.04848812,151.15,151.12,6.6153]
[1751293051049,4.43408812,151.14,151.07,45.05594866]
[1751293051647,11.04818812,151.16,151.13,6.6152]
[1751293051850,4.43408812,151.15,151.07,45.05594866]
[1751293052050,5.93594866,151.15,151.07,39.12]
[1751293052253,4.43408812,151.14,151.07,39.12]
[1751293052645,6.6159,151.12,151.09,6.6169]
[1751293053043,4.43408812,151.14,151.07,39.12]
[1751293053455,5.93594866,151.15,151.07,39.12]
[1751293053655,6.6155,151.13,151.07,39.12]
[1751293053850,4.43408812,151.15,151.07,39.12]
[1751293054057,142.23594866,151.16,151.07,39.12]
[1751293054262,6.6149,151.14,151.11,6.6158]
[1751293054463,4.43408812,151.15,151.07,39.12]
[1751293054751,4.43408812,151.15,151.14,6.6148]
[1751293054958,4.43408812,151.17,151.14,6.6148]
[1751293055258,49.49003678,151.18,151.14,6.6148]
[1751293055555,6.6141,151.16,151.14,6.6148]
[1751293055753,6.6141,151.16,151.13,6.6151]
[1751293056053,4.43408812,151.17,151.11,39.1]
[1751293056251,4.43408812,151.19,151.15,6.6141]
[1751293056656,6.6133,151.18,151.15,6.6141]
[1751293056859,4.43408812,151.19,151.12,5.93594866]
[1751293057253,11.04688812,151.19,151.17,6.6134]
[1751293057652,11.04688812,151.19,151.12,5.93594866]
[1751293058352,11.04688812,151.19,151.16,6.6137]
[1751293058554,11.04688812,151.19,151.12,5.93594866]
[1751293059455,11.04688812,151.19,151.16,6.6138]
[1751293059658,116.90177945,151.2,151.12,5.93594866]
[1751293059860,39.1,151.21,151.12,5.93594866]
[1751293060064,49.68557078,151.21,151.16,6.6138]
[1751293060259,6.6128,151.19,151.16,6.6138]
[1751293060459,45.03594866,151.21,151.16,6.6138]
[1751293060666,6.6129,151.19,151.12,5.93594866]
[1751293061052,6.6129,151.19,151.16,6.6136]
[1751293062065,5.93594866,151.19,151.11,45.9009]
[1751293062264,5.93594866,151.19,151.11,44.7609]
[1751293062559,6.6151,151.14,151.11,44.576]
[1751293062765,6.6151,151.14,151.11,6.616]
[1751293063364,5.93594866,151.15,151.11,6.616]
[1751293064359,5.93594866,151.15,151.12,6.6155]
[1751293064659,5.93594866,151.15,151.08,37.96]
[1751293064866,12.55004866,151.16,151.13,6.6149]
[1751293065066,10.65098629,151.16,151.13,6.6149]
[1751293065365,10.65098629,151.16,151.08,37.96]
[1751293065767,4.71503763,151.16,151.08,43.89594866]
[1751293066065,4.71503763,151.17,151.08,43.89594866]
[1751293066457,11.32873763,151.17,151.15,6.6143]
[1751293066654,4.71503763,151.17,151.08,43.89594866]
[1751293067159,4.71503763,151.17,151.14,6.6145]
[1751293067468,11.32883763,151.17,151.14,6.6145]
[1751293067768,4.71503763,151.17,151.13,6.6149]
[1751293067970,10.65098629,151.17,151.08,37.96]
[1751293068169,4.71503763,151.16,151.08,37.96]
[1751293068568,6.6155,151.13,151.1,6.6163]
[1751293068768,10.65098629,151.15,151.1,6.6163]
[1751293068964,10.65098629,151.15,151.08,37.96]
[1751293069170,5.93594866,151.13,151.09,6.6168]
[1751293069468,10.65098629,151.13,151.05,44.8312]
[1751293069662,6.6163,151.11,151.05,44.8312]
[1751293070873,6.6163,151.11,151.08,6.6171]
[1751293071073,6.6163,151.11,151.05,44.8312]
[1751293071975,6.6158,151.12,151.09,6.6169]
[1751293072578,11.33083763,151.12,151.09,6.6169]
[1751293073181,6.6158,151.12,151.09,6.6169]
[1751293073479,10.65098629,151.11,151.01,37.96]
[1751293073776,4.71503763,151.1,151.01,37.96]
[1751293074078,5.93594866,151.09,151.01,37.96]
[1751293074480,6.6181,151.07,151.03,6.6192]
[1751293075182,6.6184,151.06,151.03,6.6192]
[1751293075779,6.618,151.07,151.04,6.6191]
[1751293075977,6.618,151.07,151.01,37.96]
[1751293076375,6.6183,151.06,151.03,6.6192]
[1751293076887,6.6183,151.06,151.03,6.6193]
[1751293077977,6.6183,151.06,151.04,6.6191]
[1751293078985,4.71503763,151.09,151.01,37.96]
[1751293079281,11.33273763,151.08,151.05,6.6184]
[1751293079585,4.71503763,151.07,151.05,6.6184]
[1751293079788,5.93594866,151.09,151.01,37.96]
[1751293080084,5.93594866,151.07,151.03,6.6192]
[1751293080273,4.71503763,151.06,151.03,6.6192]
[1751293081182,6.6185,151.06,151.03,6.6192]
[1751293081386,6.6185,151.06,151.04,6.6191]
[1751293081585,4.71503763,151.07,151.04,6.6191]
[1751293081786,4.71503763,151.08,151.01,37.96]
[1751293081989,4.71503763,151.07,151.02,5.93594866]
[1751293082284,4.71503763,151.09,150.99,6.1207949]
[1751293082486,5.93594866,151.01,150.95,6.1207949]
[1751293082682,5.93594866,150.99,150.95,6.1207949]
[1751293082888,5.93594866,150.97,150.91,2.3129]
[1751293083294,6.6234,150.95,150.91,8.9376]
[1751293083484,5.93594866,150.97,150.91,2.3129]
[1751293083879,6.6218,150.98,150.93,6.6237]
[1751293084184,4.6926197,150.97,150.91,8.24884866]
[1751293084384,4.6926197,150.99,150.91,8.24884866]
[1751293084588,4.6926197,151.01,150.91,8.24884866]
[1751293084787,10.62856836,151.0,150.94,6.6235]
[1751293085086,5.93594866,151.0,150.94,44.6035]
[1751293085288,6.6217,150.99,150.94,44.6035]
[1751293085683,4.6926197,150.98,150.94,44.6035]
[1751293085883,11.3145197,150.98,150.94,37.98]
[1751293086090,5.93594866,150.98,150.91,40.2929]
[1751293086587,6.6226,150.97,150.91,40.2929]
[1751293087789,6.6226,150.97,150.93,6.6239]
[1751293087989,5.93594866,150.96,150.88,4.4317]
[1751293088184,5.93594866,150.94,150.88,2.2518]
[1751293088391,5.93594866,150.9,150.85,6.1207949]
[1751293088585,12.56154866,150.9,150.86,6.6267]
[1751293088787,5.93594866,150.88,150.83,6.1207949]
[1751293089289,5.93594866,150.88,150.81,47.7504949]
[1751293089486,5.93594866,150.88,150.82,6.1207949]
[1751293089681,5.93594866,150.88,150.81,47.7504949]
[1751293090287,5.93594866,150.9,150.81,53.68644356]
[1751293091286,5.93594866,150.9,150.81,41.6297]
[1751293091690,5.93594866,150.91,150.82,5.93594866]
[1751293091890,5.93594866,150.91,150.87,6.6262]
[1751293092090,5.93594866,150.91,150.82,5.93594866]
[1751293092291,5.93594866,150.91,150.81,47.56564866]
[1751293092486,5.93594866,150.89,150.81,2.3097]
[1751293092793,5.93594866,150.85,150.8,39.32]
[1751293093087,5.93594866,150.85,150.78,6.1207949]
[1751293093290,5.93594866,150.85,150.77,43.7662]
[1751293093489,5.93594866,150.85,150.83,6.6281]
[1751293093890,12.56384866,150.85,150.81,6.6289]
[1751293094387,5.93594866,150.85,150.77,43.7662]
[1751293094593,5.93594866,150.85,150.82,6.6284]
[1751293095296,5.93594866,150.83,150.77,41.5547]
[1751293095492,5.93594866,150.83,150.76,595.9]
[1751293095694,6.6293,150.81,150.75,39.34]
[1751293096101,5.93594866,150.81,150.75,39.34]
[1751293096394,12.56634866,150.79,150.73,4.6034]
[1751293096996,39.34,150.81,150.73,4.6034]
[1751293097391,39.34,150.81,150.78,6.6303]
[1751293097793,39.34,150.81,150.73,4.6034]
[1751293097994,6.6304,150.79,150.75,6.6318]
[1751293098201,6.6304,150.79,150.73,2.2587]
[1751293098501,5.93594866,150.8,150.73,2.2587]
[1751293098502,6.6308,150.78,150.75,6.6316]
[1751293098890,5.93594866,150.8,150.73,2.2587]
[1751293099088,39.34,150.81,150.73,2.2587]
[1751293099293,5.93594866,150.8,150.73,2.2587]
[1751293099497,5.93594866,150.8,150.72,41.5181]
[1751293099700,5.93594866,150.78,150.73,6.6326]
[1751293099897,5.93594866,150.78,150.68,10.27054866]
[1751293100089,6.6319,150.75,150.69,635.7]
[1751293100293,5.93594866,150.78,150.69,635.7]
[1751293100601,6.6319,150.76,150.69,635.7]
[1751293100802,5.93594866,150.78,150.69,635.7]
[1751293101196,6.6311,150.77,150.74,6.6321]
[1751293101595,5.93594866,150.78,150.74,6.6321]
[1751293101802,5.93594866,150.78,150.7,5.93594866]
[1751293102104,5.93594866,150.8,150.7,5.93594866]
[1751293102499,6.6306,150.78,150.75,6.6316]
[1751293103001,6.6298,150.8,150.7,5.93594866]
[1751293103202,6.6298,150.8,150.72,5.93594866]
[1751293103403,45.27594866,150.81,150.72,5.93594866]
[1751293103607,6.6304,150.79,150.72,5.93594866]
[1751293103898,6.6304,150.79,150.7,5.93594866]
[1751293104705,6.6304,150.79,150.76,6.6311]
[1751293105006,45.27594866,150.81,150.7,5.93594866]
[1751293105406,6.6304,150.79,150.76,6.6312]
[1751293106307,6.6299,150.8,150.76,6.6312]
[1751293106606,45.27594866,150.81,150.77,6.6309]
[1751293106807,45.9696,150.81,150.72,5.93594866]
[1751293107014,39.34,150.81,150.74,5.93594866]
[1751293107202,5.93594866,150.83,150.74,45.31594866]
[1751293107403,6.629,150.82,150.74,47.47074866]
[1751293107805,5.93594866,150.83,150.79,6.63]
[1751293108012,39.38,150.84,150.76,5.93594866]
[1751293108710,6.6286,150.83,150.8,6.6295]
[1751293109314,46.008,150.84,150.81,6.6292]
[1751293109907,39.38,150.87,150.78,45.31594866]
[1751293110207,5.93594866,150.86,150.78,39.38]
[1751293111011,6.6283,150.84,150.78,39.38]
[1751293111608,6.6283,150.84,150.81,6.629]
[1751293112313,5.93594866,150.84,150.78,39.38]
[1751293112507,5.93594866,150.82,150.75,41.6318]
[1751293112908,5.93594866,150.8,150.74,2.1548]
[1751293113314,5.93594866,150.82,150.74,2.1548]
[1751293113613,39.38,150.83,150.74,2.1548]
[1751293114015,39.38,150.83,150.75,5.93594866]
[1751293114210,39.38,150.86,150.77,5.93594866]
[1751293114613,5.93594866,150.87,150.79,5.93594866]
[1751293114811,5.93594866,150.87,150.77,5.93594866]
[1751293115011,6.6282,150.84,150.81,6.6291]
[1751293115208,5.93594866,150.87,150.77,5.93594866]
[1751293116117,5.93594866,150.85,150.77,5.93594866]
[1751293117415,5.93594866,150.85,150.81,6.629]
[1751293117818,5.93594866,150.85,150.77,5.93594866]
[1751293118415,12.56374866,150.85,150.77,5.93594866]
[1751293119128,12.56374866,150.85,150.81,6.6289]
[1751293119425,12.56374866,150.85,150.77,5.93594866]
[1751293120526,12.56374866,150.85,150.82,6.6288]
[1751293120825,6.628,150.84,150.77,5.93594866]
[1751293121423,6.628,150.84,150.81,6.629]
[1751293121924,12.56364866,150.85,150.81,6.629]
[1751293122120,5.93594866,150.85,150.81,6.629]